[Event "Late-Titled-Tuesday-Blitz-March-26-2024"]
[Site "Chess.com"]
[Date "2024.03.26"]
[Round "10"]
[White "Shiner22"]
[Black "gxbg2000"]
[Result "1-0"]
[WhiteElo "2330"]
[BlackElo "2036"]
[TimeControl "180+1"]
[EndTime "15:49:52 PDT"]
[Termination "Shiner22 won by resignation"]

1. e4 {[%clk 0:03:00.9]} 1... e5 {[%clk 0:02:57.1]} 2. Nf3 {[%clk 0:03:00.7]}
2... Nc6 {[%clk 0:02:56.3]} 3. Bc4 {[%clk 0:03:00.6]} 3... d6 {[%clk 0:02:51.5]}
4. d4 {[%clk 0:02:37.2]} 4... exd4 {[%clk 0:02:49.2]} 5. Nxd4 {[%clk 0:02:36.6]}
5... Nf6 {[%clk 0:02:48.7]} 6. O-O {[%clk 0:02:31.6]} 6... Be7 {[%clk
0:02:48.4]} 7. Nc3 {[%clk 0:02:30.9]} 7... O-O {[%clk 0:02:47.7]} 8. Bf4 {[%clk
0:02:28.3]} 8... Nxd4 {[%clk 0:02:45.3]} 9. Qxd4 {[%clk 0:02:27.9]} 9... Be6
{[%clk 0:02:45.3]} 10. Bxe6 {[%clk 0:02:26.1]} 10... fxe6 {[%clk 0:02:45]} 11.
e5 {[%clk 0:02:26.4]} 11... dxe5 {[%clk 0:02:43.2]} 12. Qxe5 {[%clk 0:02:21.1]}
12... Re8 {[%clk 0:02:27.9]} 13. Qxe6+ {[%clk 0:02:16.8]} 13... Kh8 {[%clk
0:02:27.7]} 14. Rad1 {[%clk 0:02:12.5]} 14... Bd6 {[%clk 0:02:26.9]} 15. Qb3
{[%clk 0:02:09.4]} 15... Ne4 {[%clk 0:02:09.4]} 16. Nxe4 {[%clk 0:02:04.6]}
16... Rxe4 {[%clk 0:02:09]} 17. Bxd6 {[%clk 0:02:04]} 17... cxd6 {[%clk
0:02:09]} 18. Qxb7 {[%clk 0:02:03.7]} 18... Rb8 {[%clk 0:02:05.6]} 19. Qxe4
{[%clk 0:02:02.8]} 1-0

[Event "Late-Titled-Tuesday-Blitz-March-26-2024"]
[Site "Chess.com"]
[Date "2024.03.26"]
[Round "10"]
[White "nabukatnezarr"]
[Black "publicaccountcze"]
[Result "1-0"]
[WhiteElo "2615"]
[BlackElo "2297"]
[TimeControl "180+1"]
[EndTime "15:49:57 PDT"]
[Termination "nabukatnezarr won by resignation"]

1. Nf3 {[%clk 0:03:00.9]} 1... Nf6 {[%clk 0:02:58]} 2. g3 {[%clk 0:03:00.6]}
2... g6 {[%clk 0:02:44.9]} 3. Bg2 {[%clk 0:03:01.5]} 3... Bg7 {[%clk 0:02:45.5]}
4. O-O {[%clk 0:03:02.4]} 4... O-O {[%clk 0:02:45.9]} 5. c4 {[%clk 0:02:56.5]}
5... c6 {[%clk 0:02:44.6]} 6. b3 {[%clk 0:02:50.8]} 6... d6 {[%clk 0:02:45.5]}
7. Bb2 {[%clk 0:02:48.6]} 7... e5 {[%clk 0:02:45]} 8. d3 {[%clk 0:02:43.2]} 8...
Re8 {[%clk 0:02:34.1]} 9. Nc3 {[%clk 0:02:41.3]} 9... e4 {[%clk 0:02:29.1]} 10.
Nxe4 {[%clk 0:02:11.5]} 10... Nxe4 {[%clk 0:02:27.9]} 11. Bxg7 {[%clk
0:02:12.4]} 11... Nxf2 {[%clk 0:02:27.4]} 12. Rxf2 {[%clk 0:02:13.3]} 12... Kxg7
{[%clk 0:02:27.4]} 13. Qd2 {[%clk 0:02:07.9]} 13... Nd7 {[%clk 0:02:11.6]} 14.
Ng5 {[%clk 0:02:02]} 14... Re7 {[%clk 0:02:05.7]} 15. Rxf7+ {[%clk 0:01:53.4]}
1-0

[Event "Late-Titled-Tuesday-Blitz-March-26-2024"]
[Site "Chess.com"]
[Date "2024.03.26"]
[Round "10"]
[White "PNEPaul"]
[Black "Defenstrator"]
[Result "0-1"]
[WhiteElo "1941"]
[BlackElo "2431"]
[TimeControl "180+1"]
[EndTime "15:50:12 PDT"]
[Termination "Defenstrator won by resignation"]

1. e4 {[%clk 0:03:00.9]} 1... c5 {[%clk 0:02:58.4]} 2. Nf3 {[%clk 0:03:00.6]}
2... d6 {[%clk 0:02:59.3]} 3. d4 {[%clk 0:03:00.3]} 3... cxd4 {[%clk 0:03:00.2]}
4. c3 {[%clk 0:03:00.5]} 4... Nf6 {[%clk 0:03:01.1]} 5. Bd3 {[%clk 0:02:59.4]}
5... dxc3 {[%clk 0:02:59.6]} 6. Nxc3 {[%clk 0:02:59.3]} 6... Nc6 {[%clk
0:03:00.5]} 7. Bf4 {[%clk 0:02:58.9]} 7... g6 {[%clk 0:03:00]} 8. Qe2 {[%clk
0:02:56.7]} 8... Bg7 {[%clk 0:03:00.2]} 9. Rd1 {[%clk 0:02:54.4]} 9... Bg4
{[%clk 0:03:00.3]} 10. e5 {[%clk 0:02:33.7]} 10... dxe5 {[%clk 0:02:59.7]} 11.
Bxe5 {[%clk 0:02:32]} 11... Bxf3 {[%clk 0:02:58.5]} 12. gxf3 {[%clk 0:02:31.5]}
12... Nxe5 {[%clk 0:02:58.2]} 13. Qxe5 {[%clk 0:02:23.7]} 13... O-O {[%clk
0:02:57.9]} 14. O-O {[%clk 0:02:18.3]} 14... Qc8 {[%clk 0:02:51.8]} 15. Qxe7
{[%clk 0:02:07.7]} 15... Qh3 {[%clk 0:02:51.7]} 16. Qe3 {[%clk 0:01:35.8]} 16...
Nh5 {[%clk 0:02:50.2]} 17. Ne4 {[%clk 0:01:17.9]} 17... Be5 {[%clk 0:02:49.7]}
18. Ng3 {[%clk 0:01:04.7]} 18... Nf4 {[%clk 0:02:50.1]} 0-1

[Event "Late-Titled-Tuesday-Blitz-March-26-2024"]
[Site "Chess.com"]
[Date "2024.03.26"]
[Round "10"]
[White "CMmauricio"]
[Black "Koalaskakistis"]
[Result "0-1"]
[WhiteElo "2744"]
[BlackElo "2518"]
[TimeControl "180+1"]
[EndTime "15:50:50 PDT"]
[Termination "Koalaskakistis won by resignation"]

1. d4 {[%clk 0:03:00.9]} 1... f5 {[%clk 0:03:00]} 2. e3 {[%clk 0:03:01.8]} 2...
Nf6 {[%clk 0:03:00.1]} 3. f4 {[%clk 0:03:01.8]} 3... e6 {[%clk 0:02:57.8]} 4.
Nf3 {[%clk 0:03:01.5]} 4... b6 {[%clk 0:02:58.4]} 5. Bd3 {[%clk 0:03:02]} 5...
Bb7 {[%clk 0:02:58.8]} 6. O-O {[%clk 0:03:02.6]} 6... Be7 {[%clk 0:02:58.3]} 7.
Bd2 {[%clk 0:03:03.1]} 7... O-O {[%clk 0:02:58.6]} 8. Be1 {[%clk 0:03:03.6]}
8... Ne4 {[%clk 0:02:55]} 9. Nbd2 {[%clk 0:03:02.4]} 9... d6 {[%clk 0:02:53.7]}
10. c3 {[%clk 0:03:02.5]} 10... Nd7 {[%clk 0:02:50.6]} 11. Qb3 {[%clk
0:03:02.3]} 11... Bd5 {[%clk 0:02:50.2]} 12. Bc4 {[%clk 0:03:01]} 12... c6
{[%clk 0:02:46.1]} 13. Bxd5 {[%clk 0:02:59.1]} 13... cxd5 {[%clk 0:02:40.9]} 14.
c4 {[%clk 0:02:59.7]} 14... dxc4 {[%clk 0:02:31.4]} 15. Nxc4 {[%clk 0:02:59.1]}
15... Ndf6 {[%clk 0:02:26.9]} 16. Bh4 {[%clk 0:02:55.8]} 16... Nd5 {[%clk
0:02:27.1]} 17. Bxe7 {[%clk 0:02:54.2]} 17... Qxe7 {[%clk 0:02:28]} 18. Ncd2
{[%clk 0:02:51.9]} 18... Nxd2 {[%clk 0:02:21.6]} 19. Nxd2 {[%clk 0:02:52.8]}
19... Rac8 {[%clk 0:02:21.4]} 20. Rac1 {[%clk 0:02:53.3]} 20... Qd7 {[%clk
0:02:20.3]} 21. h3 {[%clk 0:02:45.2]} 21... Rxc1 {[%clk 0:02:19.2]} 22. Rxc1
{[%clk 0:02:45.1]} 22... Rc8 {[%clk 0:02:20.1]} 23. Rxc8+ {[%clk 0:02:42.6]}
23... Qxc8 {[%clk 0:02:21]} 24. Nc4 {[%clk 0:02:39.1]} 24... Qc6 {[%clk
0:02:16.9]} 25. a4 {[%clk 0:02:35.1]} 25... a6 {[%clk 0:02:16.3]} 26. Kh2 {[%clk
0:02:31.8]} 26... b5 {[%clk 0:02:09.3]} 27. axb5 {[%clk 0:02:31.7]} 27... axb5
{[%clk 0:02:09.6]} 28. Nd2 {[%clk 0:02:25.2]} 28... h6 {[%clk 0:02:00.3]} 29.
Nf3 {[%clk 0:02:08.2]} 29... Kh7 {[%clk 0:01:53.2]} 30. Qd3 {[%clk 0:02:06.2]}
30... Qc1 {[%clk 0:01:48.4]} 0-1

[Event "Late-Titled-Tuesday-Blitz-March-26-2024"]
[Site "Chess.com"]
[Date "2024.03.26"]
[Round "10"]
[White "hellokostya"]
[Black "Mikhal867"]
[Result "0-1"]
[WhiteElo "2584"]
[BlackElo "2487"]
[TimeControl "180+1"]
[EndTime "15:50:50 PDT"]
[Termination "Mikhal867 won by checkmate"]

1. Nf3 {[%clk 0:03:00]} 1... c5 {[%clk 0:02:53.5]} 2. e4 {[%clk 0:02:59.7]} 2...
Nc6 {[%clk 0:02:52.9]} 3. d4 {[%clk 0:02:59]} 3... cxd4 {[%clk 0:02:52.3]} 4.
Nxd4 {[%clk 0:02:59.9]} 4... Nf6 {[%clk 0:02:52.2]} 5. Nc3 {[%clk 0:03:00.1]}
5... e5 {[%clk 0:02:52.3]} 6. Ndb5 {[%clk 0:03:00.3]} 6... d6 {[%clk 0:02:49.5]}
7. Bg5 {[%clk 0:03:00.5]} 7... a6 {[%clk 0:02:48.1]} 8. Na3 {[%clk 0:03:01.3]}
8... b5 {[%clk 0:02:47.6]} 9. Nd5 {[%clk 0:03:02]} 9... Be7 {[%clk 0:02:46.8]}
10. Bxf6 {[%clk 0:03:02.2]} 10... Bxf6 {[%clk 0:02:46.6]} 11. c4 {[%clk
0:03:02.9]} 11... b4 {[%clk 0:02:45.1]} 12. Nc2 {[%clk 0:03:03.2]} 12... Rb8
{[%clk 0:02:42.3]} 13. Qf3 {[%clk 0:02:54.8]} 13... Bg5 {[%clk 0:02:40.9]} 14.
g3 {[%clk 0:02:47.5]} 14... O-O {[%clk 0:02:39.9]} 15. h4 {[%clk 0:02:47.2]}
15... Bh6 {[%clk 0:02:39.3]} 16. Bh3 {[%clk 0:02:46.5]} 16... Be6 {[%clk
0:02:17.8]} 17. Rd1 {[%clk 0:02:44]} 17... Qa5 {[%clk 0:02:11.6]} 18. Qb3 {[%clk
0:02:39.4]} 18... Qc5 {[%clk 0:02:01.7]} 19. Qd3 {[%clk 0:02:24.8]} 19... Qa5
{[%clk 0:01:28.6]} 20. b3 {[%clk 0:02:23.9]} 20... Qxa2 {[%clk 0:01:20.9]} 21.
Bxe6 {[%clk 0:02:16]} 21... fxe6 {[%clk 0:01:20.5]} 22. Nc7 {[%clk 0:02:16.3]}
22... Nd4 {[%clk 0:01:07.8]} 23. Nxd4 {[%clk 0:02:10.6]} 23... Qxf2# {[%clk
0:01:06.4]} 0-1

[Event "Late-Titled-Tuesday-Blitz-March-26-2024"]
[Site "Chess.com"]
[Date "2024.03.26"]
[Round "10"]
[White "ValeriyGrinev"]
[Black "David_ATM"]
[Result "0-1"]
[WhiteElo "2573"]
[BlackElo "2388"]
[TimeControl "180+1"]
[EndTime "15:51:20 PDT"]
[Termination "David_ATM won by checkmate"]

1. e4 {[%clk 0:02:55.8]} 1... e5 {[%clk 0:02:59.3]} 2. Nf3 {[%clk 0:02:55.5]}
2... Nc6 {[%clk 0:02:59.9]} 3. Bb5 {[%clk 0:02:55.1]} 3... a6 {[%clk 0:03:00.4]}
4. Bxc6 {[%clk 0:02:54.7]} 4... dxc6 {[%clk 0:03:01.3]} 5. O-O {[%clk
0:02:54.9]} 5... Bg4 {[%clk 0:03:00.8]} 6. d3 {[%clk 0:02:54.4]} 6... Bb4 {[%clk
0:02:53.4]} 7. h3 {[%clk 0:02:53.3]} 7... Bxf3 {[%clk 0:02:47.5]} 8. Qxf3 {[%clk
0:02:52]} 8... Qf6 {[%clk 0:02:45.7]} 9. Qg3 {[%clk 0:02:50]} 9... Bd6 {[%clk
0:02:39.6]} 10. Be3 {[%clk 0:02:47.7]} 10... Qg6 {[%clk 0:02:32.2]} 11. Qf3
{[%clk 0:02:45.2]} 11... Qf6 {[%clk 0:02:32.3]} 12. Qe2 {[%clk 0:02:44.2]} 12...
O-O-O {[%clk 0:02:25.9]} 13. Nd2 {[%clk 0:02:43.7]} 13... Ne7 {[%clk 0:02:20.6]}
14. a3 {[%clk 0:02:35.6]} 14... g5 {[%clk 0:02:20]} 15. b4 {[%clk 0:02:34.1]}
15... h5 {[%clk 0:02:19.7]} 16. c4 {[%clk 0:02:30.4]} 16... Ng6 {[%clk
0:02:17.6]} 17. Rfb1 {[%clk 0:02:19.5]} 17... Nf4 {[%clk 0:02:08.2]} 18. Qf1
{[%clk 0:02:19.1]} 18... Be7 {[%clk 0:02:02.9]} 19. Bxf4 {[%clk 0:02:15.8]}
19... exf4 {[%clk 0:01:52]} 20. c5 {[%clk 0:02:10.7]} 20... g4 {[%clk
0:01:51.2]} 21. Nc4 {[%clk 0:02:04.4]} 21... gxh3 {[%clk 0:01:41.8]} 22. gxh3
{[%clk 0:02:01.8]} 22... Rhg8+ {[%clk 0:01:38.9]} 23. Kh2 {[%clk 0:01:59.6]}
23... f3 {[%clk 0:01:36.2]} 24. Qc1 {[%clk 0:01:49.3]} 24... Rg2+ {[%clk
0:01:32.3]} 25. Kh1 {[%clk 0:01:48.8]} 25... Qh4 {[%clk 0:01:31.4]} 26. Nd6+
{[%clk 0:01:36.6]} 26... Bxd6 {[%clk 0:01:28.7]} 27. Qf4 {[%clk 0:01:32.5]}
27... Qxh3+ {[%clk 0:01:26.9]} 28. Qh2 {[%clk 0:01:31.8]} 28... Qxh2# {[%clk
0:01:27.8]} 0-1

[Event "Late-Titled-Tuesday-Blitz-March-26-2024"]
[Site "Chess.com"]
[Date "2024.03.26"]
[Round "10"]
[White "ImportedItalianMaple"]
[Black "financieru"]
[Result "1-0"]
[WhiteElo "2523"]
[BlackElo "2408"]
[TimeControl "180+1"]
[EndTime "15:51:22 PDT"]
[Termination "ImportedItalianMaple won by resignation"]

1. Nf3 {[%clk 0:03:00.9]} 1... Nf6 {[%clk 0:02:59.9]} 2. g3 {[%clk 0:03:00.6]}
2... g6 {[%clk 0:03:00.5]} 3. Bg2 {[%clk 0:03:00.8]} 3... Bg7 {[%clk 0:03:01.4]}
4. O-O {[%clk 0:03:00.6]} 4... O-O {[%clk 0:03:02.2]} 5. d4 {[%clk 0:03:00.6]}
5... d6 {[%clk 0:03:02.6]} 6. c4 {[%clk 0:03:00.6]} 6... Nbd7 {[%clk 0:03:03.3]}
7. Nc3 {[%clk 0:03:00.8]} 7... e5 {[%clk 0:03:04]} 8. e4 {[%clk 0:03:01.1]} 8...
c6 {[%clk 0:03:04.6]} 9. h3 {[%clk 0:03:00.9]} 9... Qb6 {[%clk 0:03:03.9]} 10.
c5 {[%clk 0:02:59.9]} 10... dxc5 {[%clk 0:03:04.8]} 11. dxe5 {[%clk 0:03:00.8]}
11... Ne8 {[%clk 0:03:05.1]} 12. e6 {[%clk 0:03:01.3]} 12... fxe6 {[%clk
0:03:06]} 13. Ng5 {[%clk 0:03:01.7]} 13... Nc7 {[%clk 0:02:39.4]} 14. f4 {[%clk
0:02:45.7]} 14... Bd4+ {[%clk 0:02:38.8]} 15. Kh2 {[%clk 0:02:44.9]} 15... e5
{[%clk 0:02:39.1]} 16. f5 {[%clk 0:02:37.7]} 16... Nf6 {[%clk 0:02:37.1]} 17.
Qe2 {[%clk 0:01:58]} 17... Nb5 {[%clk 0:02:28.5]} 18. Nf3 {[%clk 0:01:39.5]}
18... Nxc3 {[%clk 0:01:28.8]} 19. bxc3 {[%clk 0:01:38.6]} 19... Bxc3 {[%clk
0:01:29.7]} 20. Qc4+ {[%clk 0:01:38.5]} 20... Kg7 {[%clk 0:01:28.7]} 21. Qxc3
{[%clk 0:01:35]} 21... Qc7 {[%clk 0:01:18.4]} 1-0

[Event "Late-Titled-Tuesday-Blitz-March-26-2024"]
[Site "Chess.com"]
[Date "2024.03.26"]
[Round "10"]
[White "Zkid"]
[Black "aghasiyevkamal"]
[Result "1-0"]
[WhiteElo "2909"]
[BlackElo "2644"]
[TimeControl "180+1"]
[EndTime "15:51:31 PDT"]
[Termination "Zkid won by resignation"]

1. e4 {[%clk 0:03:00.9]} 1... c5 {[%clk 0:02:59]} 2. Nf3 {[%clk 0:03:01.1]} 2...
d6 {[%clk 0:02:58.2]} 3. d4 {[%clk 0:03:01.6]} 3... cxd4 {[%clk 0:02:58.6]} 4.
Nxd4 {[%clk 0:03:02.5]} 4... Nf6 {[%clk 0:02:59.1]} 5. Nc3 {[%clk 0:03:03.1]}
5... g6 {[%clk 0:02:59.4]} 6. Be3 {[%clk 0:03:02.4]} 6... Bg7 {[%clk 0:02:59.7]}
7. f3 {[%clk 0:03:03]} 7... O-O {[%clk 0:02:59.6]} 8. Qd2 {[%clk 0:03:03.6]}
8... Nc6 {[%clk 0:02:59.8]} 9. O-O-O {[%clk 0:03:03.9]} 9... d5 {[%clk
0:02:59.9]} 10. Qe1 {[%clk 0:03:03.6]} 10... e5 {[%clk 0:02:58.7]} 11. Nxc6
{[%clk 0:03:03.5]} 11... bxc6 {[%clk 0:02:59.1]} 12. exd5 {[%clk 0:03:04.1]}
12... Nxd5 {[%clk 0:02:56.2]} 13. Bc4 {[%clk 0:03:02.9]} 13... Be6 {[%clk
0:02:55.8]} 14. Bc5 {[%clk 0:02:57.1]} 14... Re8 {[%clk 0:02:49.3]} 15. Ne4
{[%clk 0:02:51.4]} 15... Qc7 {[%clk 0:02:46.7]} 16. h4 {[%clk 0:02:46.7]} 16...
Rad8 {[%clk 0:02:37.5]} 17. h5 {[%clk 0:02:43.5]} 17... Nf4 {[%clk 0:02:32.1]}
18. Rxd8 {[%clk 0:02:32.9]} 18... Rxd8 {[%clk 0:02:30.1]} 19. Bxe6 {[%clk
0:02:15.8]} 19... Nxe6 {[%clk 0:02:29.8]} 20. hxg6 {[%clk 0:02:15.9]} 20... hxg6
{[%clk 0:02:29.7]} 21. Ba3 {[%clk 0:02:14.7]} 21... c5 {[%clk 0:02:10.4]} 22.
Qh4 {[%clk 0:02:08.3]} 22... f5 {[%clk 0:02:09]} 23. Nxc5 {[%clk 0:01:57.5]}
23... Nd4 {[%clk 0:01:54.3]} 24. c3 {[%clk 0:01:49.1]} 24... Ne2+ {[%clk
0:01:50.3]} 25. Kc2 {[%clk 0:01:43]} 25... Nf4 {[%clk 0:01:47.4]} 26. g3 {[%clk
0:01:41.3]} 26... Nd5 {[%clk 0:01:35.4]} 27. Ne6 {[%clk 0:01:33.5]} 27... Ne3+
{[%clk 0:01:34.6]} 28. Kb1 {[%clk 0:01:33.1]} 1-0

[Event "Late-Titled-Tuesday-Blitz-March-26-2024"]
[Site "Chess.com"]
[Date "2024.03.26"]
[Round "10"]
[White "Shankland"]
[Black "Polish_fighter3000"]
[Result "0-1"]
[WhiteElo "2920"]
[BlackElo "3121"]
[TimeControl "180+1"]
[EndTime "15:51:37 PDT"]
[Termination "Polish_fighter3000 won by resignation"]

1. d4 {[%clk 0:03:00.9]} 1... Nf6 {[%clk 0:02:56.8]} 2. c4 {[%clk 0:03:01.1]}
2... g6 {[%clk 0:02:57.1]} 3. Nc3 {[%clk 0:03:01]} 3... d5 {[%clk 0:02:57.4]} 4.
Bg5 {[%clk 0:02:56.1]} 4... Ne4 {[%clk 0:02:52.9]} 5. Bf4 {[%clk 0:02:55.4]}
5... Nxc3 {[%clk 0:02:52.7]} 6. bxc3 {[%clk 0:02:55.7]} 6... c5 {[%clk 0:02:53]}
7. Nf3 {[%clk 0:02:51.4]} 7... Nc6 {[%clk 0:02:48.6]} 8. cxd5 {[%clk 0:02:41.1]}
8... Qxd5 {[%clk 0:02:49.5]} 9. Qb3 {[%clk 0:02:41.3]} 9... Qxb3 {[%clk
0:02:25.5]} 10. axb3 {[%clk 0:02:42.2]} 10... cxd4 {[%clk 0:02:19.8]} 11. cxd4
{[%clk 0:02:39.8]} 11... Be6 {[%clk 0:02:15.4]} 12. e4 {[%clk 0:02:33.1]} 12...
Bg7 {[%clk 0:02:15]} 13. Bb5 {[%clk 0:02:26.8]} 13... Bxb3 {[%clk 0:02:08.5]}
14. Ra3 {[%clk 0:02:10.2]} 14... Bc2 {[%clk 0:01:33.7]} 15. d5 {[%clk
0:02:09.7]} 15... Bxe4 {[%clk 0:01:30.5]} 16. dxc6 {[%clk 0:02:09]} 16... bxc6
{[%clk 0:01:31.4]} 17. Be2 {[%clk 0:02:07.4]} 17... O-O {[%clk 0:01:27.7]} 18.
Re3 {[%clk 0:02:04.3]} 18... Bd5 {[%clk 0:01:26.6]} 19. Rxe7 {[%clk 0:01:56.5]}
19... Rfe8 {[%clk 0:01:23.9]} 20. Rxe8+ {[%clk 0:01:55.3]} 20... Rxe8 {[%clk
0:01:24.8]} 21. Kd2 {[%clk 0:01:52.4]} 21... a5 {[%clk 0:01:24.7]} 22. Be3
{[%clk 0:01:47.7]} 22... a4 {[%clk 0:01:23.1]} 23. Rc1 {[%clk 0:01:36.4]} 23...
a3 {[%clk 0:01:09.2]} 24. Bc4 {[%clk 0:01:36.5]} 24... Bxc4 {[%clk 0:01:09]} 0-1

[Event "Late-Titled-Tuesday-Blitz-March-26-2024"]
[Site "Chess.com"]
[Date "2024.03.26"]
[Round "10"]
[White "The_Straightforward_Rook"]
[Black "expii"]
[Result "1-0"]
[WhiteElo "2394"]
[BlackElo "2216"]
[TimeControl "180+1"]
[EndTime "15:51:46 PDT"]
[Termination "The_Straightforward_Rook won by resignation"]

1. e4 {[%clk 0:02:50.1]} 1... c5 {[%clk 0:02:52.8]} 2. c3 {[%clk 0:02:47.8]}
2... Nf6 {[%clk 0:02:48]} 3. e5 {[%clk 0:02:44.5]} 3... Nd5 {[%clk 0:02:46.2]}
4. Nf3 {[%clk 0:02:43.7]} 4... e6 {[%clk 0:02:37.1]} 5. Bc4 {[%clk 0:02:39.5]}
5... Nc6 {[%clk 0:02:14.7]} 6. O-O {[%clk 0:02:23.3]} 6... Nb6 {[%clk
0:02:13.2]} 7. Bb3 {[%clk 0:02:22.9]} 7... Qc7 {[%clk 0:02:09.3]} 8. d4 {[%clk
0:02:22.2]} 8... c4 {[%clk 0:02:04]} 9. Bc2 {[%clk 0:02:20.9]} 9... d5 {[%clk
0:02:00.9]} 10. Nbd2 {[%clk 0:02:12.7]} 10... Be7 {[%clk 0:01:54.5]} 11. Re1
{[%clk 0:02:12.6]} 11... g6 {[%clk 0:01:41]} 12. Nf1 {[%clk 0:02:11]} 12... h5
{[%clk 0:01:26.9]} 13. h4 {[%clk 0:01:52.3]} 13... Bd7 {[%clk 0:01:21.9]} 14.
Bg5 {[%clk 0:01:49.4]} 14... O-O-O {[%clk 0:01:17.3]} 15. b3 {[%clk 0:01:46.8]}
15... Bxg5 {[%clk 0:01:15.3]} 16. Nxg5 {[%clk 0:01:46.2]} 16... Rdf8 {[%clk
0:01:16.2]} 17. Ne3 {[%clk 0:01:42.8]} 17... cxb3 {[%clk 0:01:12.2]} 18. axb3
{[%clk 0:01:42.1]} 18... Ne7 {[%clk 0:01:09.7]} 19. c4 {[%clk 0:01:40]} 19...
Nf5 {[%clk 0:01:07.8]} 20. c5 {[%clk 0:01:38.7]} 20... Nxe3 {[%clk 0:01:04.8]}
21. fxe3 {[%clk 0:01:35.5]} 21... Na8 {[%clk 0:01:05.1]} 22. Rf1 {[%clk
0:01:35.5]} 22... Qb8 {[%clk 0:01:04.9]} 23. Rxf7 {[%clk 0:01:33.2]} 23... Rxf7
{[%clk 0:01:03]} 24. Nxf7 {[%clk 0:01:34.1]} 24... Rf8 {[%clk 0:01:03]} 25. Bxg6
{[%clk 0:01:33.6]} 25... Nc7 {[%clk 0:01:01]} 26. Nd6+ {[%clk 0:01:30.9]} 26...
Kd8 {[%clk 0:01:00.8]} 27. Qxh5 {[%clk 0:01:31.2]} 1-0

[Event "Late-Titled-Tuesday-Blitz-March-26-2024"]
[Site "Chess.com"]
[Date "2024.03.26"]
[Round "10"]
[White "giovannibrandao7"]
[Black "Bala-Afiada"]
[Result "1/2-1/2"]
[WhiteElo "2155"]
[BlackElo "1876"]
[TimeControl "180+1"]
[EndTime "15:51:47 PDT"]
[Termination "Game drawn by repetition"]

1. e4 {[%clk 0:03:00]} 1... c5 {[%clk 0:02:55.7]} 2. Nf3 {[%clk 0:03:00.2]} 2...
Nc6 {[%clk 0:02:54.5]} 3. Bb5 {[%clk 0:03:00.5]} 3... d6 {[%clk 0:02:50.7]} 4.
O-O {[%clk 0:03:00.5]} 4... Bg4 {[%clk 0:02:48.9]} 5. Re1 {[%clk 0:02:57.7]}
5... e5 {[%clk 0:02:48.7]} 6. c3 {[%clk 0:02:57.4]} 6... a6 {[%clk 0:02:30.5]}
7. Bxc6+ {[%clk 0:02:51.6]} 7... bxc6 {[%clk 0:02:31.4]} 8. d3 {[%clk
0:02:51.8]} 8... Qf6 {[%clk 0:02:14.5]} 9. Nbd2 {[%clk 0:02:41.8]} 9... Be7
{[%clk 0:02:09.4]} 10. Qa4 {[%clk 0:02:39.8]} 10... Bd7 {[%clk 0:02:06.6]} 11.
Nf1 {[%clk 0:02:33.5]} 11... Qg6 {[%clk 0:01:59.6]} 12. Ng3 {[%clk 0:02:31.4]}
12... Nf6 {[%clk 0:01:58.8]} 13. Nf5 {[%clk 0:02:27.1]} 13... h6 {[%clk
0:01:34.5]} 14. Nxe7 {[%clk 0:02:17.9]} 14... Kxe7 {[%clk 0:01:34.4]} 15. Qd1
{[%clk 0:01:58.1]} 15... Bh3 {[%clk 0:01:16.3]} 16. g3 {[%clk 0:01:55.5]} 16...
Bg4 {[%clk 0:01:12.4]} 17. Kg2 {[%clk 0:01:43.6]} 17... Qh5 {[%clk 0:01:09.8]}
18. d4 {[%clk 0:01:33.1]} 18... Qh3+ {[%clk 0:01:03.4]} 19. Kg1 {[%clk
0:01:32.3]} 19... Qh5 {[%clk 0:00:56.8]} 20. Kg2 {[%clk 0:01:30.5]} 20... Qh3+
{[%clk 0:00:52.7]} 21. Kg1 {[%clk 0:01:30.4]} 21... Qh5 {[%clk 0:00:52.6]} 22.
Kg2 {[%clk 0:01:29.5]} 1/2-1/2

[Event "Late-Titled-Tuesday-Blitz-March-26-2024"]
[Site "Chess.com"]
[Date "2024.03.26"]
[Round "10"]
[White "cristiano78"]
[Black "Chesstiger64"]
[Result "1/2-1/2"]
[WhiteElo "2254"]
[BlackElo "2400"]
[TimeControl "180+1"]
[EndTime "15:51:55 PDT"]
[Termination "Game drawn by repetition"]

1. d4 {[%clk 0:02:37.5]} 1... d6 {[%clk 0:02:59.7]} 2. c4 {[%clk 0:02:29.8]}
2... e5 {[%clk 0:02:59]} 3. dxe5 {[%clk 0:02:28.9]} 3... dxe5 {[%clk 0:02:59.9]}
4. Qxd8+ {[%clk 0:02:28.4]} 4... Kxd8 {[%clk 0:03:00.8]} 5. Nc3 {[%clk
0:02:28.3]} 5... c6 {[%clk 0:03:01]} 6. e4 {[%clk 0:02:28.5]} 6... Bb4 {[%clk
0:02:58.6]} 7. Bd2 {[%clk 0:02:28.6]} 7... a5 {[%clk 0:02:58.2]} 8. O-O-O {[%clk
0:02:28.7]} 8... Kc7 {[%clk 0:02:56.8]} 9. a3 {[%clk 0:02:28.3]} 9... Bxc3
{[%clk 0:02:56.4]} 10. Bxc3 {[%clk 0:02:28]} 10... f6 {[%clk 0:02:56.7]} 11. Nf3
{[%clk 0:02:25.6]} 11... Bg4 {[%clk 0:02:56.6]} 12. Be2 {[%clk 0:02:25.3]} 12...
Bxf3 {[%clk 0:02:55.9]} 13. Bxf3 {[%clk 0:02:25]} 13... Ne7 {[%clk 0:02:55.8]}
14. g3 {[%clk 0:02:23.9]} 14... Nd7 {[%clk 0:02:54.8]} 15. Kc2 {[%clk
0:02:23.1]} 15... Nc5 {[%clk 0:02:54.9]} 16. b3 {[%clk 0:02:21.6]} 16... a4
{[%clk 0:02:47.5]} 17. b4 {[%clk 0:02:21.1]} 17... Nb3 {[%clk 0:02:47.6]} 18.
Rd3 {[%clk 0:02:15.5]} 18... Rhd8 {[%clk 0:02:45.5]} 19. Rhd1 {[%clk 0:02:14.3]}
19... Rxd3 {[%clk 0:02:44.4]} 20. Rxd3 {[%clk 0:02:14.9]} 20... Rd8 {[%clk
0:02:44.2]} 21. Rxd8 {[%clk 0:02:13.3]} 21... Kxd8 {[%clk 0:02:44.4]} 22. Be2
{[%clk 0:02:11.6]} 22... b6 {[%clk 0:02:43.6]} 23. Kb2 {[%clk 0:02:05.4]} 23...
c5 {[%clk 0:02:34.4]} 24. Bd1 {[%clk 0:02:02.4]} 24... cxb4 {[%clk 0:01:55.5]}
25. axb4 {[%clk 0:01:37.9]} 25... Nd4 {[%clk 0:01:52.1]} 26. Bxa4 {[%clk
0:01:29.5]} 26... Kc7 {[%clk 0:01:50.7]} 27. Bxd4 {[%clk 0:01:22.3]} 27... exd4
{[%clk 0:01:50.1]} 28. f4 {[%clk 0:01:21.8]} 28... g5 {[%clk 0:01:49.6]} 29. Kc2
{[%clk 0:01:20.8]} 29... gxf4 {[%clk 0:01:46.9]} 30. gxf4 {[%clk 0:01:20.4]}
30... Ng6 {[%clk 0:01:47.5]} 31. Kd3 {[%clk 0:01:15.5]} 31... Nxf4+ {[%clk
0:01:47.4]} 32. Kxd4 {[%clk 0:01:12.1]} 32... Ne6+ {[%clk 0:01:42.3]} 33. Kd5
{[%clk 0:01:10.7]} 33... Nf4+ {[%clk 0:01:40]} 34. Kd4 {[%clk 0:01:10.5]} 34...
Ne6+ {[%clk 0:01:40.6]} 35. Kd5 {[%clk 0:01:04.1]} 35... Nf4+ {[%clk 0:01:40]}
36. Kd4 {[%clk 0:01:02.2]} 1/2-1/2